bitfinex/quotes_SOLUSD_20260202
["timestamp","ask_amount","ask_price","bid_price","bid_amount"]
[1770039572896,0.83016765,103.55,103.51,33.02587208]
[1770039573082,0.83016765,103.54,103.51,33.02587208]
[1770039577603,0.83016765,103.53,103.51,2.5982748]
[1770039580698,0.83016765,103.52,103.49,26.84]
[1770039580901,0.83016765,103.52,103.49,27.66729349]
[1770039581491,0.83016765,103.52,103.49,31.25489077]
[1770039581795,0.82880484,103.53,103.5,4.41489077]
[1770039582598,0.82880484,103.53,103.5,0.82729349]
[1770039583513,0.82880484,103.53,103.49,27.66729349]
[1770039583514,0.82880484,103.52,103.49,27.66729349]
[1770039585701,0.82880484,103.52,103.49,31.25489077]
[1770039587116,0.82880484,103.52,103.49,4.41489077]
[1770039587304,0.82880484,103.54,103.51,0.82729349]
[1770039587516,0.82880484,103.54,103.51,4.41489077]
[1770039588019,0.82880484,103.53,103.5,0.82729349]
[1770039588194,0.82880484,103.53,103.5,4.41489077]
[1770039588913,0.99029833,103.54,103.51,0.98287896]
[1770039590723,4.57789561,103.54,103.51,0.98287896]
[1770039592123,1.10644193,103.53,103.5,4.64777957]
[1770039592301,1.10644193,103.53,103.5,1.06018229]
[1770039593126,1.10644193,103.52,103.49,31.48777957]
[1770039593325,1.10644193,103.53,103.5,1.06018229]
[1770039595421,4.69403921,103.53,103.5,1.06018229]
[1770039595716,1.10644193,103.53,103.5,1.06018229]
[1770039595920,3.58759728,103.52,103.49,26.84]
[1770039596104,1.10644193,103.51,103.48,1.06018229]
[1770039596421,4.69403921,103.51,103.48,1.06018229]
[1770039596621,1.10644193,103.51,103.48,1.06018229]
[1770039597297,1.10644193,103.51,103.48,4.64777957]
[1770039598499,1.10644193,103.54,103.51,1.06018229]
[1770039598705,1.10644193,103.54,103.51,4.64777957]
[1770039600910,4.27527085,103.57,103.48,24.15925782]
[1770039600911,1.10644193,103.52,103.48,4.64777957]
[1770039601112,4.69403921,103.5,103.47,1.06018229]
[1770039601308,1.10644193,103.51,103.48,1.06018229]
[1770039601930,4.69403921,103.51,103.48,1.06018229]
[1770039606420,1.10644193,103.5,103.47,1.06018229]
[1770039607027,1.10644193,103.5,103.47,4.64777957]
[1770039607831,4.69403921,103.5,103.46,81.84]
[1770039608032,4.69403921,103.5,103.44,1.26018229]
[1770039608033,1.10644193,103.47,103.44,83.12018229]
[1770039608215,1.10644193,103.48,103.45,1.06018229]
[1770039608830,4.69403921,103.48,103.45,1.06018229]
[1770039610435,1.10644193,103.48,103.45,1.06018229]
[1770039611627,4.70198387,103.48,103.44,27.06]
[1770039611837,4.70198387,103.48,103.44,28.12018229]
[1770039611838,1.10644193,103.47,103.44,28.12018229]
[1770039612026,1.10644193,103.47,103.44,1.26018229]
[1770039612229,4.70198387,103.47,103.44,1.26018229]
[1770039612629,1.10644193,103.47,103.44,1.26018229]
[1770039613122,1.10644193,103.48,103.45,1.06018229]
[1770039613327,1.10644193,103.48,103.44,4.85572423]
[1770039613328,1.10644193,103.47,103.44,4.85572423]
[1770039613521,1.10644193,103.47,103.44,1.26018229]
[1770039615340,4.70198387,103.49,103.45,1.06018229]
[1770039615739,1.10644193,103.48,103.45,1.06018229]
[1770039616138,4.70198387,103.48,103.45,1.06018229]
[1770039617140,1.10644193,103.48,103.45,1.06018229]
[1770039619550,4.70198387,103.48,103.45,1.06018229]
[1770039620052,1.10644193,103.47,103.44,59.85572423]
[1770039620555,4.70198387,103.48,103.45,1.06018229]
[1770039621851,4.81058527,103.49,103.46,1.18587483]
[1770039623728,1.21504333,103.48,103.46,1.18587483]
[1770039624748,4.81058527,103.48,103.45,1.18587483]
[1770039626448,1.21504333,103.48,103.45,4.78141677]
[1770039628155,1.21504333,103.48,103.45,1.18587483]
[1770039629651,4.81058527,103.48,103.45,1.18587483]
[1770039629852,1.21504333,103.46,103.44,0.2]
[1770039631557,1.21504333,103.45,103.42,28.24587483]
[1770039632161,4.81058527,103.45,103.42,28.24587483]
[1770039632953,1.21504333,103.44,103.42,27.06]
[1770039633154,1.21504333,103.43,103.42,0.2]
[1770039633748,4.81058527,103.42,103.4,0.2]
[1770039633949,1.21504333,103.42,103.4,0.2]
[1770039634145,4.81058527,103.42,103.4,0.2]
[1770039634746,4.81058527,103.42,103.39,1.38587483]
[1770039636061,4.81058527,103.42,103.39,1.38587483]
[1770039636357,4.81058527,103.4,103.37,0.2]
[1770039636563,4.81058527,103.39,103.37,0.2]
[1770039636939,4.81058527,103.38,103.37,0.2]
[1770039637259,4.81058527,103.38,103.34,3.79554194]
[1770039637260,1.21504333,103.37,103.34,1.38587483]
[1770039637459,4.81058527,103.37,103.34,1.38587483]
[1770039638750,3.59554194,103.36,103.34,1.38587483]
[1770039639160,4.81058527,103.37,103.34,1.38587483]
[1770039639358,3.59554194,103.36,103.34,1.38587483]
[1770039639660,4.81058527,103.36,103.34,0.2]
[1770039640761,1.21504333,103.36,103.34,0.2]
[1770039641055,4.81058527,103.36,103.34,0.2]
[1770039641261,3.59554194,103.36,103.34,0.2]
[1770039641445,1.21504333,103.37,103.34,1.38587483]
[1770039641646,4.81058527,103.38,103.34,1.38587483]
[1770039641846,1.21504333,103.38,103.34,1.38587483]
[1770039642151,4.81058527,103.38,103.34,1.38587483]
[1770039642557,1.21504333,103.36,103.34,0.2]
[1770039642866,4.81058527,103.37,103.34,0.2]
[1770039643059,4.81058527,103.37,103.34,1.38587483]
[1770039645571,3.59554194,103.36,103.34,0.2]
[1770039645750,4.81058527,103.36,103.34,0.2]
[1770039646656,1.21504333,103.36,103.34,0.2]
[1770039646970,4.81058527,103.37,103.34,0.2]
[1770039647355,4.81058527,103.36,103.34,0.2]
[1770039648866,1.33132266,103.35,103.32,4.96128516]
[1770039649473,4.9268646,103.36,103.33,1.36574322]
[1770039650874,1.33132266,103.36,103.33,1.36574322]
[1770039653572,4.94388075,103.37,103.33,1.36574322]
[1770039657177,1.34833881,103.36,103.33,1.36574322]
[1770039660364,4.94388075,103.36,103.33,1.36574322]
[1770039660559,4.94388075,103.37,103.33,1.36574322]
[1770039660760,1.34833881,103.36,103.33,1.36574322]
[1770039660960,4.94388075,103.36,103.33,1.36574322]
[1770039661173,1.34833881,103.36,103.33,1.36574322]
[1770039662680,4.94388075,103.36,103.33,1.36574322]
[1770039663193,1.34833881,103.34,103.32,1.35911287]
[1770039663497,4.94388075,103.34,103.3,1.35911287]
[1770039663969,3.59554194,103.33,103.3,1.35911287]
[1770039664384,4.94388075,103.33,103.3,1.35911287]
[1770039665389,4.94388075,103.34,103.3,1.35911287]
[1770039665886,1.34833881,103.33,103.3,1.35911287]
[1770039668474,4.94388075,103.33,103.3,1.35911287]
[1770039668887,1.34833881,103.33,103.3,1.35911287]
[1770039669283,4.94388075,103.34,103.31,1.35911287]
[1770039669484,3.59554194,103.34,103.31,1.35911287]
[1770039669670,4.94388075,103.34,103.31,1.35911287]
[1770039670370,4.95448989,103.33,103.3,1.35911287]
[1770039670682,4.95448989,103.34,103.3,1.35911287]
[1770039670890,4.95448989,103.34,103.31,1.35911287]
[1770039671061,1.34833881,103.34,103.31,1.35911287]
[1770039671881,4.95448989,103.35,103.31,1.35911287]
[1770039672087,4.95448989,103.35,103.32,1.35911287]
[1770039674569,4.95448989,103.34,103.31,1.35911287]
[1770039674887,1.34833881,103.34,103.31,1.35911287]
[1770039675189,4.95448989,103.34,103.31,1.35911287]
[1770039679071,1.34833881,103.34,103.31,1.35911287]
[1770039679268,1.34833881,103.38,103.33,1.35911287]
[1770039679475,1.34833881,103.37,103.34,1.35911287]
[1770039679684,4.95448989,103.37,103.34,1.35911287]
[1770039682080,1.34833881,103.37,103.34,1.35911287]
[1770039682282,5.05611424,103.38,103.35,1.46307571]
[1770039682596,1.44996316,103.37,103.34,1.46307571]
[1770039683091,7.88142193,103.39,103.35,1.46307571]
[1770039683284,1.44996316,103.39,103.36,1.46307571]
[1770039683485,5.05611424,103.42,103.37,5.06922679]
[1770039683687,1.44996316,103.43,103.39,1.46307571]
[1770039683885,3.60615108,103.41,103.39,1.46307571]
[1770039684095,5.05611424,103.42,103.39,1.46307571]
[1770039684692,5.05611424,103.42,103.32,53.75364701]
[1770039684693,5.05611424,103.41,103.38,0.12124676]
[1770039684878,1.44996316,103.39,103.35,3.60615108]
[1770039685080,5.05611424,103.39,103.35,3.60615108]
[1770039685479,1.44996316,103.39,103.35,3.60615108]
[1770039686794,1.44996316,103.39,103.36,1.46307571]
[1770039687196,5.05611424,103.39,103.36,1.46307571]
[1770039687378,1.44996316,103.39,103.36,1.46307571]
[1770039688001,5.05611424,103.4,103.36,1.46307571]
[1770039688210,5.05611424,103.4,103.37,1.46307571]
[1770039688406,1.44996316,103.41,103.37,1.46307571]
[1770039688603,5.05611424,103.43,103.39,1.46307571]
[1770039689109,1.44996316,103.43,103.39,5.06922679]
[1770039689288,1.44996316,103.43,103.4,1.46307571]
[1770039689898,1.44996316,103.43,103.39,5.06922679]
[1770039690117,1.44996316,103.43,103.4,1.46307571]
[1770039690290,5.05611424,103.44,103.4,5.06922679]
[1770039690683,5.05611424,103.44,103.4,1.46307571]
[1770039691184,1.44996316,103.44,103.41,1.46307571]
[1770039691707,1.44996316,103.44,103.41,5.06922679]
[1770039693192,1.44996316,103.44,103.41,1.46307571]
[1770039694002,5.05611424,103.46,103.42,1.46307571]
[1770039694303,1.44996316,103.45,103.42,1.46307571]
[1770039695108,5.05611424,103.45,103.42,1.46307571]
[1770039695607,5.05611424,103.45,103.41,1.46307571]
[1770039695608,1.44996316,103.44,103.41,1.46307571]
[1770039702706,1.44996316,103.42,103.39,1.46307571]
[1770039702895,5.05611424,103.42,103.39,1.46307571]
[1770039704615,1.44996316,103.42,103.39,1.46307571]
[1770039708314,5.05611424,103.43,103.39,1.46307571]
[1770039708700,5.05611424,103.43,103.4,1.62011249]
[1770039710013,3.60615108,103.44,103.4,1.62011249]
[1770039710219,5.25067326,103.45,103.42,1.62011249]
[1770039710611,1.64452218,103.43,103.41,1.62011249]
[1770039710906,1.64452218,103.42,103.4,56.62011249]
[1770039711109,1.64452218,103.42,103.4,1.62011249]
[1770039711798,3.60615108,103.43,103.4,1.62011249]
[1770039711799,5.22871906,103.43,103.4,1.62011249]
[1770039716931,5.22871906,103.46,103.43,1.60660252]
[1770039717223,1.62256798,103.45,103.43,1.60660252]
[1770039718128,1.62256798,103.46,103.43,1.60660252]
[1770039718320,5.42871906,103.47,103.44,1.60660252]
[1770039718500,9.70398991,103.47,103.44,1.60660252]
[1770039718701,5.22871906,103.46,103.43,1.60660252]
[1770039719204,9.70398991,103.47,103.44,1.60660252]
[1770039719521,1.62256798,103.46,103.44,1.60660252]
[1770039719721,9.70398991,103.47,103.44,1.60660252]
[1770039722833,6.09783883,103.47,103.44,1.60660252]
[1770039724226,9.70398991,103.47,103.44,1.60660252]
[1770039724414,1.62256798,103.45,103.42,1.60660252]
[1770039724608,5.22871906,103.45,103.42,1.60660252]
[1770039725426,1.62256798,103.45,103.42,1.60660252]
[1770039731023,5.22016686,103.45,103.42,1.60660252]
[1770039731335,1.62256798,103.44,103.41,55.0]
[1770039731521,1.62256798,103.44,103.41,56.60660252]
[1770039732037,1.62256798,103.44,103.42,1.60660252]
[1770039733730,5.22016686,103.44,103.42,1.60660252]
[1770039734327,1.62256798,103.42,103.41,55.0]
[1770039734525,1.62256798,103.42,103.38,26.88]
[1770039734526,1.62256798,103.41,103.38,1.60660252]
[1770039734841,1.62256798,103.42,103.39,1.60660252]
[1770039735223,5.22016686,103.42,103.39,1.60660252]
[1770039736224,5.22016686,103.43,103.39,1.60660252]
[1770039736424,9.49543771,103.45,103.41,1.60660252]
[1770039736620,1.62256798,103.45,103.41,3.59759888]
[1770039736826,1.62256798,103.45,103.42,1.60660252]
[1770039737232,5.22016686,103.45,103.42,1.60660252]
[1770039737835,1.62256798,103.44,103.42,1.60660252]
[1770039738238,5.22016686,103.45,103.42,1.60660252]
[1770039739127,0.2,103.47,103.44,3.59759888]
[1770039739335,0.2,103.5,103.46,3.59759888]
[1770039739652,1.62256798,103.49,103.46,1.60660252]
[1770039739831,1.62256798,103.49,103.46,5.2042014]
[1770039740150,1.62256798,103.49,103.46,1.60660252]
[1770039740728,1.62256798,103.49,103.46,5.2042014]
[1770039740927,0.2,103.5,103.48,1.60660252]
[1770039741126,3.59759888,103.52,103.48,5.2042014]
[1770039741437,3.59759888,103.53,103.49,1.60660252]
[1770039741747,7.87286973,103.53,103.49,1.60660252]
[1770039742336,3.59759888,103.53,103.49,1.60660252]
[1770039742666,0.28432314,103.53,103.49,1.60660252]
[1770039742830,3.88192202,103.53,103.49,1.60660252]
[1770039743030,3.88192202,103.53,103.48,5.22830168]
[1770039743031,9.53612063,103.52,103.48,5.22830168]
[1770039743428,5.93852175,103.52,103.49,1.6307028]
[1770039744048,1.6632509,103.5,103.47,1.6307028]
[1770039744436,1.6632509,103.5,103.46,1.6307028]
[1770039744437,1.6632509,103.49,103.46,1.6307028]
[1770039744741,5.26084978,103.49,103.46,1.6307028]
[1770039746851,1.6632509,103.49,103.46,1.6307028]
[1770039749938,5.26084978,103.5,103.47,1.6307028]
[1770039750937,1.6632509,103.49,103.46,1.6307028]
[1770039752235,1.6632509,103.51,103.48,1.6307028]
[1770039753059,5.93852175,103.52,103.49,1.6307028]
[1770039753256,1.6632509,103.51,103.48,1.6307028]
[1770039753562,1.6632509,103.49,103.46,1.6307028]
[1770039754256,5.26084978,103.5,103.46,1.6307028]
[1770039754559,1.6632509,103.5,103.47,1.6307028]
[1770039755172,1.6632509,103.53,103.5,1.6307028]
[1770039755477,0.2,103.56,103.54,1.6307028]
[1770039755632,5.04819897,103.6,103.59,1.6307028]
[1770039755834,1.7632509,103.62,103.57,1.6307028]
[1770039756158,1.6632509,103.59,103.55,1.6307028]
[1770039756490,3.59759888,103.58,103.55,1.6307028]
[1770039756683,3.59759888,103.56,103.53,1.6307028]
[1770039756977,3.59759888,103.55,103.51,1.6307028]
[1770039757274,5.26084978,103.57,103.53,1.6307028]
[1770039757481,3.59759888,103.56,103.53,1.6307028]
[1770039757659,3.59759888,103.55,103.53,1.6307028]
[1770039758072,1.6632509,103.58,103.53,1.6307028]
[1770039758378,8.97404296,103.57,103.54,1.6307028]
[1770039759252,1.6632509,103.58,103.53,1.6307028]
[1770039759455,8.97404296,103.56,103.53,1.6307028]
[1770039759683,10.63729386,103.55,103.51,1.6307028]
[1770039759978,10.63729386,103.54,103.51,1.6307028]
[1770039760153,8.97404296,103.53,103.51,1.6307028]
[1770039760359,10.63729386,103.52,103.48,1.6307028]
[1770039760662,8.97404296,103.49,103.46,1.6307028]
[1770039760974,1.6632509,103.5,103.46,1.6307028]
[1770039761279,8.97404296,103.5,103.46,1.6307028]
[1770039761452,8.97404296,103.49,103.46,1.6307028]
[1770039761854,1.6632509,103.5,103.46,1.6307028]
[1770039762074,0.28432314,103.52,103.46,1.6307028]
[1770039762253,8.97404296,103.49,103.46,1.6307028]
[1770039762454,8.97404296,103.5,103.46,1.6307028]
[1770039763063,1.6632509,103.52,103.48,1.6307028]
[1770039763260,8.97404296,103.51,103.48,1.6307028]
[1770039763464,1.6632509,103.54,103.48,10.60474576]
[1770039763772,1.6632509,103.54,103.51,1.6307028]
[1770039764077,8.97404296,103.53,103.51,1.6307028]
[1770039764276,10.63729386,103.54,103.51,1.6307028]
[1770039764482,10.63729386,103.52,103.48,1.6307028]
[1770039764775,8.97404296,103.52,103.48,1.6307028]
[1770039764960,8.97404296,103.52,103.49,1.6307028]
[1770039765775,1.6632509,103.51,103.47,1.6307028]
[1770039765974,8.97404296,103.51,103.48,1.6307028]
[1770039767383,10.63729386,103.52,103.48,10.60474576]
[1770039767580,10.63729386,103.52,103.48,1.6307028]
[1770039767794,8.97404296,103.53,103.49,1.6307028]
[1770039767964,10.63729386,103.54,103.5,1.6307028]
[1770039768584,10.63729386,103.54,103.5,10.60474576]
[1770039768783,10.63729386,103.54,103.51,1.6307028]
[1770039768992,8.97404296,103.54,103.51,1.6307028]
[1770039769195,8.97404296,103.54,103.49,8.97404296]
[1770039769196,8.97404296,103.52,103.49,1.80848354]
[1770039769498,10.67776714,103.54,103.5,1.80848354]
[1770039769992,4.27527085,103.56,103.51,1.80848354]
[1770039769993,5.97899503,103.56,103.51,1.80848354]
[1770039770171,5.97899503,103.56,103.5,8.97404296]
[1770039770172,8.97404296,103.55,103.52,1.80848354]
[1770039770489,8.97404296,103.54,103.51,1.80848354]
[1770039771266,1.70372418,103.55,103.51,1.80848354]
[1770039771462,8.97404296,103.54,103.51,1.80848354]
[1770039771682,10.67776714,103.55,103.51,1.80848354]
[1770039771875,10.67776714,103.55,103.51,10.7825265]
[1770039772076,10.67776714,103.55,103.51,1.80848354]
[1770039772863,10.69732414,103.56,103.52,10.70792768]
[1770039773069,10.69732414,103.56,103.52,1.73388472]
[1770039773367,10.69732414,103.55,103.51,1.73388472]
[1770039774802,4.27527085,103.57,103.49,1.73388472]
[1770039774803,8.97404296,103.52,103.49,1.73388472]
[1770039774979,10.69732414,103.53,103.49,1.73388472]
[1770039775179,10.69732414,103.53,103.5,1.73388472]
[1770039775478,10.69732414,103.53,103.49,8.97404296]
[1770039775479,10.98164728,103.52,103.48,1.73388472]
[1770039775680,8.97404296,103.51,103.48,1.73388472]
[1770039776390,10.69732414,103.52,103.48,1.73388472]
[1770039777092,1.72328118,103.52,103.49,1.73388472]
[1770039777295,10.69732414,103.52,103.49,1.73388472]
[1770039779480,10.69732414,103.52,103.48,56.73388472]
[1770039779778,10.69732414,103.52,103.49,1.73388472]
[1770039780167,10.69732414,103.51,103.47,10.70792768]
[1770039780367,0.28432314,103.53,103.47,1.73388472]
[1770039780368,10.69732414,103.5,103.47,1.73388472]
[1770039780566,8.97404296,103.49,103.47,1.73388472]
[1770039780771,10.69732414,103.51,103.48,1.73388472]
[1770039781170,10.69732414,103.5,103.47,1.73388472]
[1770039781490,8.97404296,103.48,103.42,1.73388472]
[1770039781692,8.97404296,103.46,103.42,1.73388472]
[1770039781902,10.69732414,103.44,103.4,1.93388472]
[1770039782074,1.72328118,103.46,103.42,1.73388472]
[1770039782390,10.69732414,103.47,103.43,10.70792768]
[1770039782580,10.69732414,103.47,103.43,1.73388472]
[1770039783397,8.97404296,103.46,103.43,1.73388472]
[1770039784098,10.69732414,103.46,103.43,1.73388472]
[1770039784307,10.98164728,103.48,103.44,1.73388472]
[1770039784604,8.97404296,103.48,103.45,1.73388472]
[1770039784774,10.69732414,103.48,103.45,1.73388472]
[1770039785682,13.24931381,103.49,103.45,1.73388472]
[1770039785889,14.97259499,103.49,103.45,1.73388472]
[1770039787168,10.69732414,103.48,103.45,1.73388472]
[1770039787981,1.72328118,103.48,103.45,1.73388472]
[1770039788387,10.69732414,103.48,103.45,1.73388472]
[1770039789188,10.69732414,103.46,103.43,1.73388472]
[1770039789691,1.72328118,103.46,103.43,1.73388472]
[1770039790080,10.69732414,103.46,103.43,1.73388472]
[1770039790984,1.72328118,103.45,103.41,10.70792768]
[1770039791301,8.97404296,103.44,103.41,1.73388472]
[1770039791989,1.72328118,103.45,103.42,1.73388472]
[1770039791990,8.97404296,103.45,103.42,1.73388472]
[1770039792184,10.69732414,103.45,103.42,1.73388472]
[1770039792380,1.72328118,103.45,103.42,1.73388472]
[1770039792580,10.71779674,103.45,103.42,1.73388472]
[1770039793001,1.72328118,103.45,103.42,1.73388472]
[1770039793314,0.28432314,103.46,103.42,1.73388472]
[1770039793315,14.99306759,103.47,103.43,1.73388472]
[1770039794004,10.71779674,103.46,103.42,1.73388472]
[1770039794508,1.72328118,103.47,103.43,1.73388472]
[1770039794685,5.3208802,103.47,103.43,1.73388472]
[1770039795684,5.3208802,103.47,103.44,1.73388472]
[1770039797191,3.59759902,103.46,103.43,1.73388472]
[1770039799306,5.3208802,103.47,103.43,1.73388472]
[1770039801305,5.3208802,103.46,103.43,1.73388472]
[1770039801689,1.72328118,103.46,103.43,1.73388472]
[1770039801895,3.88192216,103.48,103.45,1.86649177]
[1770039802115,5.51702557,103.48,103.45,1.86649177]
[1770039802313,1.91942655,103.5,103.47,1.86649177]
[1770039802610,5.51702557,103.52,103.48,1.86649177]
[1770039802981,1.91942655,103.52,103.49,1.86649177]
[1770039803800,1.91942655,103.52,103.49,5.46409079]
[1770039804003,1.91942655,103.52,103.49,1.86649177]
[1770039804506,1.91942655,103.54,103.51,1.86649177]
[1770039806101,8.98027359,103.55,103.51,10.84676536]
[1770039806102,10.89970014,103.55,103.51,10.84676536]
[1770039806304,1.91942655,103.55,103.52,1.86649177]
[1770039806684,10.89970014,103.57,103.53,10.84676536]
[1770039806886,1.91942655,103.56,103.53,1.86649177]
[1770039807098,10.89970014,103.56,103.52,10.84676536]
[1770039808012,1.91942655,103.56,103.53,1.86649177]
[1770039808194,10.89970014,103.57,103.54,1.86649177]
[1770039808709,1.91942655,103.59,103.55,1.86649177]
[1770039808888,2.01942655,103.62,103.57,8.98027359]
[1770039809091,10.89970014,103.61,103.57,1.86649177]
[1770039809295,0.1,103.62,103.53,9.65899529]
[1770039809296,0.1,103.62,103.59,1.86649177]
[1770039809586,10.89970014,103.6,103.55,8.98027359]
[1770039809791,10.89970014,103.57,103.52,8.98027359]
[1770039810294,8.98027359,103.57,103.5,9.66143704]
[1770039810502,1.91942655,103.58,103.53,8.98027359]
[1770039810707,1.91942655,103.58,103.47,9.66428541]
[1770039810708,10.89970014,103.54,103.47,9.66428541]
[1770039811009,10.89970014,103.51,103.46,8.98027359]
[1770039811201,8.98027359,103.5,103.45,8.98027359]
[1770039811390,1.91942655,103.49,103.44,8.98027359]
[1770039811591,8.98027359,103.48,103.45,1.86649177]
[1770039811990,10.89970014,103.49,103.45,1.86649177]
[1770039812295,8.98027359,103.48,103.45,1.86649177]
[1770039813489,10.89970014,103.46,103.42,1.86649177]
[1770039813685,8.98027359,103.45,103.42,1.86649177]
[1770039814102,10.89970014,103.46,103.42,1.86649177]
[1770039814312,8.98027359,103.45,103.42,1.86649177]
[1770039814920,1.91942655,103.46,103.42,10.84676536]
[1770039815096,10.89970014,103.46,103.42,1.86649177]
[1770039816514,10.89970014,103.45,103.41,1.86649177]
[1770039816707,10.89970014,103.46,103.42,1.86649177]
[1770039816906,4.27527085,103.49,103.4,0.2]
[1770039816907,10.89970014,103.44,103.4,2.06649177]
[1770039817215,8.98027359,103.43,103.4,2.06649177]
[1770039817519,1.91942655,103.44,103.4,2.06649177]
[1770039817520,10.89970014,103.44,103.4,2.06649177]
[1770039817816,10.89970014,103.44,103.4,11.04676536]
[1770039818519,10.89970014,103.43,103.4,0.2]
[1770039818703,1.91942655,103.42,103.4,0.2]
[1770039819108,8.98027359,103.42,103.4,0.2]
[1770039820508,10.89970014,103.42,103.4,0.2]
[1770039820817,1.91942655,103.42,103.4,0.2]
[1770039821192,10.89970014,103.42,103.4,0.2]
[1770039823517,1.91942655,103.4,103.36,10.18486003]
[1770039824300,10.89970014,103.41,103.37,1.19262347]
[1770039825319,10.89970014,103.4,103.36,0.9830951]
[1770039825917,0.28432314,103.42,103.38,0.9830951]
[1770039825918,11.18402328,103.42,103.38,0.9830951]
[1770039826114,10.89970014,103.41,103.37,0.77597337]
[1770039826829,1.91942655,103.41,103.37,0.77597337]
[1770039827193,10.75928313,103.42,103.38,0.57123064]
[1770039827398,8.98027359,103.43,103.39,0.57123064]
[1770039827593,1.77900954,103.43,103.4,0.57123064]
[1770039827805,1.77900954,103.43,103.39,9.55150423]
[1770039828008,10.58416304,103.44,103.4,0.39611055]
[1770039828226,1.60388945,103.41,103.37,9.37638414]
[1770039828524,10.58416304,103.41,103.37,9.37638414]
[1770039829509,1.60388945,103.41,103.37,9.37638414]
[1770039829722,8.98027359,103.39,103.36,0.39611055]
[1770039829924,9.4525388,103.4,103.36,0.39611055]
[1770039830595,9.4525388,103.4,103.36,9.37638414]
[1770039831221,9.4525388,103.4,103.36,0.39611055]
[1770039831421,9.4525388,103.39,103.35,0.49611055]
[1770039832125,9.43387946,103.4,103.36,0.39611055]
[1770039832421,9.43387946,103.4,103.36,9.37638414]
[1770039832618,9.43387946,103.42,103.38,0.39611055]
[1770039832800,9.43387946,103.43,103.39,0.39611055]
[1770039832999,0.45360587,103.43,103.39,9.37638414]
[1770039833606,0.45360587,103.45,103.4,0.39611055]
[1770039833801,9.43387946,103.43,103.4,0.39611055]
[1770039834001,9.43387946,103.43,103.38,9.37638414]
[1770039834617,0.45360587,103.42,103.38,9.37638414]
[1770039834922,9.43387946,103.42,103.37,0.39611055]
[1770039835220,9.43387946,103.42,103.38,0.39611055]
[1770039835418,0.45360587,103.42,103.38,9.37638414]
[1770039835722,0.45360587,103.42,103.36,9.9590393]
[1770039835723,9.43387946,103.41,103.37,0.39611055]
[1770039836501,9.43387946,103.41,103.37,9.37638414]
[1770039837025,0.45360587,103.41,103.37,9.37638414]
[1770039837326,9.43387946,103.39,103.35,0.49611055]
[1770039838424,0.45360587,103.41,103.36,0.39611055]
[1770039838612,8.98027359,103.4,103.35,9.47638414]
[1770039838817,9.43387946,103.4,103.35,9.47638414]
[1770039841122,0.45360587,103.39,103.35,9.47638414]
[1770039843127,9.43387946,103.4,103.36,0.39611055]
[1770039843311,9.43387946,103.4,103.36,9.37638414]
[1770039843823,0.45360587,103.39,103.36,0.39611055]
[1770039844731,0.45360587,103.39,103.35,9.47638414]
[1770039846315,9.43387946,103.39,103.35,0.49611055]
[1770039846921,0.45360587,103.39,103.35,9.47638414]
[1770039847127,0.45360587,103.39,103.36,8.98027359]
[1770039847428,0.45360587,103.41,103.37,8.98027359]
[1770039848228,0.45360587,103.39,103.36,9.37638414]
[1770039848523,0.45360587,103.4,103.37,8.98027359]
[1770039848706,0.45360587,103.4,103.38,8.98027359]
[1770039849128,0.45360587,103.42,103.39,8.98027359]
[1770039849336,0.45360587,103.42,103.39,9.37638414]
[1770039849515,0.45360587,103.42,103.4,8.98027359]
[1770039849916,0.45360587,103.42,103.39,9.37638414]
[1770039851425,0.45360587,103.42,103.38,0.39611055]
[1770039851630,0.45360587,103.41,103.38,8.98027359]
[1770039851824,0.45360587,103.4,103.36,64.37638414]
[1770039852032,0.45360587,103.39,103.36,55.0]
[1770039852731,0.45360587,103.41,103.37,9.37638414]
[1770039853330,0.45360587,103.41,103.38,8.98027359]
[1770039854122,8.98027359,103.43,103.4,8.98027359]
[1770039854123,0.45360587,103.43,103.4,8.98027359]
[1770039854533,0.45360587,103.43,103.4,8.99580997]
[1770039855031,0.45360587,103.44,103.41,8.99580997]
[1770039855613,0.45360587,103.45,103.41,9.39192052]
[1770039855935,0.45360587,103.47,103.43,8.99580997]
[1770039856331,0.45360587,103.47,103.44,8.99580997]
[1770039856640,0.45360587,103.47,103.45,8.99580997]
[1770039857815,0.45360587,103.47,103.44,8.99580997]
[1770039858817,0.45360587,103.47,103.39,33.1757024]
[1770039858818,0.45360587,103.46,103.42,8.99580997]
[1770039859738,0.45360587,103.46,103.43,8.99580997]
[1770039860215,0.45360587,103.46,103.42,8.99580997]
[1770039861119,0.45360587,103.45,103.42,8.99580997]
[1770039861320,0.45360587,103.45,103.41,8.99580997]
[1770039861745,0.4573257,103.44,103.4,0.39611055]
[1770039861922,0.4573257,103.44,103.4,8.99580997]
[1770039862123,0.4573257,103.44,103.41,8.99580997]
[1770039862430,0.4573257,103.44,103.42,8.99580997]
[1770039862629,0.4573257,103.45,103.42,9.39192052]
[1770039863344,0.4573257,103.45,103.42,8.99580997]
[1770039864442,0.4573257,103.45,103.41,9.39192052]
[1770039866149,0.4573257,103.45,103.41,8.99580997]
[1770039868752,0.4573257,103.45,103.42,8.99580997]
[1770039871457,0.4573257,103.45,103.41,9.39192052]